[Event "Championnat d'Europe de Blitz"]
[Date "2024.12.09"]
[White "Horvath, Dominik"]
[Black "Djukic, Nikola"]
[WhiteElo "2542"]
[BlackElo "2493"]
[Round "13.26"]
[Result "0-1"]
[TimeControl "180+2"]

1. g3 {[%clk 00:03:03]} c5 {[%emt 00:00:03] [%clk 00:03:02]} 2. Bg2 {[%emt
00:00:08] [%clk 00:02:56]} g6 {[%emt 00:00:02] [%clk 00:03:02]} 3. c3 {[%emt
00:00:10] [%clk 00:02:48]} Bg7 {[%emt 00:00:01] [%clk 00:03:03]} 4. d4 {[%emt
00:00:01] [%clk 00:02:49]} cxd4 {[%emt 00:00:05] [%clk 00:03:00]} 5. cxd4 {[%clk
00:02:50]} d5 {[%emt 00:00:03] [%clk 00:03:00]} 6. Nf3 {[%emt 00:00:04] [%clk
00:02:48]} Nf6 {[%clk 00:03:01]} 7. O-O {[%emt 00:00:02] [%clk 00:02:48]} O-O
{[%emt 00:00:02] [%clk 00:03:01]} 8. Nc3 {[%emt 00:00:01] [%clk 00:02:49]} Bf5
{[%emt 00:00:04] [%clk 00:03:00]} 9. Bf4 {[%emt 00:00:02] [%clk 00:02:48]} Ne4
{[%emt 00:00:02] [%clk 00:03:00]} 10. Rc1 {[%emt 00:00:02] [%clk 00:02:48]} Nc6
{[%emt 00:00:15] [%clk 00:02:47]} 11. Nh4 {[%emt 00:00:02] [%clk 00:02:48]} Nxc3
{[%emt 00:00:24] [%clk 00:02:25]} 12. bxc3 {[%emt 00:00:02] [%clk 00:02:48]} Be6
{[%emt 00:00:04] [%clk 00:02:23]} 13. c4 {[%emt 00:00:02] [%clk 00:02:48]} Rc8
{[%emt 00:00:46] [%clk 00:01:39]} 14. e4 {[%emt 00:00:20] [%clk 00:02:31]} Nxd4
{[%emt 00:00:06] [%clk 00:01:35]} 15. cxd5 {[%emt 00:00:08] [%clk 00:02:25]} Bd7
{[%emt 00:00:10] [%clk 00:01:26]} 16. Rxc8 {[%emt 00:00:58] [%clk 00:01:29]}
Qxc8 {[%emt 00:00:02] [%clk 00:01:26]} 17. Qd2 {[%clk 00:01:30]} Qc4 {[%emt
00:00:07] [%clk 00:01:21]} 18. Be3 {[%emt 00:00:10] [%clk 00:01:22]} Rc8 {[%emt
00:00:15] [%clk 00:01:08]} 19. Rd1 {[%emt 00:00:05] [%clk 00:01:19]} Ne2+ {[%emt
00:00:41] [%clk 00:00:30]} 20. Kh1 {[%emt 00:00:02] [%clk 00:01:18]} Nc3 {[%emt
00:00:12] [%clk 00:00:20]} 21. Rc1 {[%emt 00:00:12] [%clk 00:01:08]} a5 {[%emt
00:00:03] [%clk 00:00:19]} 22. Bf1 {[%emt 00:00:06] [%clk 00:01:04]} Qxe4+
{[%emt 00:00:02] [%clk 00:00:20]} 23. Bg2 {[%emt 00:00:03] [%clk 00:01:03]} Qc4
{[%emt 00:00:03] [%clk 00:00:19]} 24. a3 {[%emt 00:00:08] [%clk 00:00:56]} b5
{[%emt 00:00:02] [%clk 00:00:19]} 25. Bg5 {[%emt 00:00:06] [%clk 00:00:52]} Qc5
{[%emt 00:00:10] [%clk 00:00:12]} 26. Re1 {[%emt 00:00:08] [%clk 00:00:46]} Re8
{[%emt 00:00:02] [%clk 00:00:12]} 27. Nf3 {[%emt 00:00:30] [%clk 00:00:18]} Qxd5
{[%emt 00:00:03] [%clk 00:00:11]} 28. Qf4 {[%emt 00:00:05] [%clk 00:00:15]} Qf5
{[%emt 00:00:03] [%clk 00:00:10]} 29. Qc7 {[%emt 00:00:01] [%clk 00:00:16]} Be6
{[%emt 00:00:05] [%clk 00:00:06]} 30. Qxa5 {[%emt 00:00:07] [%clk 00:00:12]} Bd5
{[%emt 00:00:01] [%clk 00:00:07]} 31. Bf4 {[%clk 00:00:13]} Qd3 {[%emt 00:00:03]
[%clk 00:00:06]} 32. Ne5 {[%emt 00:00:10] [%clk 00:00:05]} Bxg2+ {[%clk
00:00:06]} 33. Kxg2 {[%clk 00:00:06]} Qd5+ {[%emt 00:00:01] [%clk 00:00:07]} 34.
Nf3 {[%emt 00:00:01] [%clk 00:00:07]} Ne4 {[%emt 00:00:03] [%clk 00:00:06]} 35.
a4 {[%emt 00:00:04] [%clk 00:00:06]} g5 {[%emt 00:00:02] [%clk 00:00:06]} 36.
Be3 {[%emt 00:00:05] [%clk 00:00:03]} g4 {[%emt 00:00:01] [%clk 00:00:06]} 37.
Nh4 {[%emt 00:00:01] [%clk 00:00:04]} Bc3 {[%emt 00:00:03] [%clk 00:00:05]} 0-1

[Site "Europe Echecs"]

[Event "Championnat d'Europe de Blitz"]
[Date "2024.12.09"]
[White "Navara, David"]
[Black "Aizenberg, Benny"]
[WhiteElo "2665"]
[BlackElo "2425"]
[Round "13.27"]
[Result "1-0"]
[TimeControl "180+2"]

1. d4 {[%clk 00:03:03]} Nf6 {[%emt 00:00:03] [%clk 00:03:03]} 2. c4 {[%clk
00:03:04]} g6 {[%clk 00:03:04]} 3. Nc3 {[%emt 00:00:05] [%clk 00:03:02]} d5
{[%emt 00:00:01] [%clk 00:03:05]} 4. cxd5 {[%emt 00:00:08] [%clk 00:02:56]} Nxd5
{[%emt 00:00:01] [%clk 00:03:05]} 5. e4 {[%clk 00:02:56]} Nxc3 {[%emt 00:00:02]
[%clk 00:03:06]} 6. bxc3 {[%emt 00:00:01] [%clk 00:02:57]} Bg7 {[%emt 00:00:01]
[%clk 00:03:06]} 7. Be3 {[%emt 00:00:01] [%clk 00:02:58]} c5 {[%emt 00:00:02]
[%clk 00:03:07]} 8. Rc1 {[%emt 00:00:04] [%clk 00:02:56]} O-O {[%emt 00:00:08]
[%clk 00:03:01]} 9. Qd2 {[%emt 00:00:22] [%clk 00:02:36]} cxd4 {[%emt 00:00:25]
[%clk 00:02:38]} 10. cxd4 {[%emt 00:00:02] [%clk 00:02:37]} Nc6 {[%emt 00:00:01]
[%clk 00:02:39]} 11. d5 {[%emt 00:00:06] [%clk 00:02:32]} Ne5 {[%emt 00:00:01]
[%clk 00:02:39]} 12. h3 {[%emt 00:00:35] [%clk 00:01:59]} f5 {[%emt 00:00:52]
[%clk 00:01:49]} 13. f4 {[%emt 00:00:03] [%clk 00:01:58]} Nd7 {[%emt 00:00:01]
[%clk 00:01:50]} 14. e5 {[%emt 00:00:15] [%clk 00:01:45]} Nb6 {[%emt 00:00:01]
[%clk 00:01:51]} 15. Rc5 {[%emt 00:00:33] [%clk 00:01:14]} Bd7 {[%emt 00:00:48]
[%clk 00:01:05]} 16. Nf3 {[%emt 00:00:01] [%clk 00:01:14]} Rc8 {[%emt 00:00:01]
[%clk 00:01:06]} 17. Be2 {[%emt 00:00:13] [%clk 00:01:04]} Rxc5 {[%emt 00:00:25]
[%clk 00:00:43]} 18. Bxc5 {[%emt 00:00:02] [%clk 00:01:04]} Bc8 {[%emt 00:00:01]
[%clk 00:00:44]} 19. d6 {[%emt 00:00:08] [%clk 00:00:58]} exd6 {[%emt 00:00:01]
[%clk 00:00:45]} 20. Bxd6 {[%emt 00:00:03] [%clk 00:00:57]} Re8 {[%clk
00:00:46]} 21. O-O {[%emt 00:00:11] [%clk 00:00:47]} Be6 {[%emt 00:00:03] [%clk
00:00:45]} 22. Ng5 {[%emt 00:00:11] [%clk 00:00:37]} Bd5 {[%emt 00:00:22] [%clk
00:00:26]} 23. Bb5 {[%emt 00:00:10] [%clk 00:00:29]} h6 {[%emt 00:00:20] [%clk
00:00:09]} 24. Bxe8 {[%emt 00:00:08] [%clk 00:00:23]} Qxe8 {[%emt 00:00:01]
[%clk 00:00:09]} 25. Nf3 {[%clk 00:00:24]} Qa4 {[%emt 00:00:01] [%clk 00:00:10]}
26. Rc1 {[%emt 00:00:06] [%clk 00:00:20]} Kh7 {[%emt 00:00:07] [%clk 00:00:06]}
27. a3 {[%emt 00:00:07] [%clk 00:00:15]} Qe4 {[%emt 00:00:03] [%clk 00:00:05]}
28. Qd4 {[%emt 00:00:07] [%clk 00:00:10]} Qe2 {[%emt 00:00:02] [%clk 00:00:05]}
29. Re1 {[%emt 00:00:01] [%clk 00:00:10]} Qc2 {[%emt 00:00:03] [%clk 00:00:05]}
30. Qf2 {[%emt 00:00:05] [%clk 00:00:07]} Qa4 {[%emt 00:00:02] [%clk 00:00:05]}
31. e6 {[%emt 00:00:02] [%clk 00:00:07]} Nc4 {[%emt 00:00:02] [%clk 00:00:05]}
32. Bc5 {[%emt 00:00:03] [%clk 00:00:06]} b6 {[%emt 00:00:02] [%clk 00:00:05]}
33. Bd4 {[%clk 00:00:07]} Bxf3 {[%emt 00:00:02] [%clk 00:00:05]} 34. Bxg7 {[%emt
00:00:02] [%clk 00:00:07]} Bxg2 {[%emt 00:00:03] [%clk 00:00:03]} 35. Kxg2
{[%emt 00:00:04] [%clk 00:00:05]} Kxg7 {[%emt 00:00:02] [%clk 00:00:03]} 36.
Qd4+ {[%clk 00:00:06]} Kg8 {[%emt 00:00:02] [%clk 00:00:04]} 37. Qd8+ {[%clk
00:00:07]} 1-0

[Site "Europe Echecs"]

[Event "Championnat d'Europe de Blitz"]
[Date "2024.12.09"]
[White "Pacher, Milan"]
[Black "Georgiev, Kiril"]
[WhiteElo "2310"]
[BlackElo "2537"]
[Round "13.28"]
[Result "0-1"]
[TimeControl "180+2"]

1. d4 {[%clk 00:03:03]} Nf6 {[%emt 00:00:07]} 2. c4 {[%clk 00:03:04]} Nc6 {[%emt
00:00:01] [%clk 00:03:00]} 3. Nf3 {[%emt 00:00:02] [%clk 00:03:04]} e6 {[%clk
00:03:01]} 4. a3 {[%emt 00:00:01] [%clk 00:03:04]} d6 {[%emt 00:00:02] [%clk
00:03:02]} 5. Nc3 {[%emt 00:00:03] [%clk 00:03:03]} g6 {[%emt 00:00:01] [%clk
00:03:02]} 6. e4 {[%emt 00:00:02] [%clk 00:03:03]} Bg7 {[%clk 00:03:04]} 7. Be2
{[%emt 00:00:02] [%clk 00:03:03]} O-O {[%emt 00:00:02] [%clk 00:03:04]} 8. O-O
{[%emt 00:00:02] [%clk 00:03:03]} Re8 {[%clk 00:03:06]} 9. b4 {[%emt 00:00:10]
[%clk 00:02:55]} e5 {[%emt 00:00:06] [%clk 00:03:01]} 10. d5 {[%emt 00:00:02]
[%clk 00:02:55]} Nd4 {[%emt 00:00:03] [%clk 00:03:01]} 11. Be3 {[%emt 00:00:16]
[%clk 00:02:41]} Nxe2+ {[%emt 00:00:35] [%clk 00:02:28]} 12. Qxe2 {[%emt
00:00:01] [%clk 00:02:42]} Ng4 {[%emt 00:00:02] [%clk 00:02:29]} 13. c5 {[%emt
00:00:35] [%clk 00:02:10]} f5 {[%emt 00:00:11] [%clk 00:02:19]} 14. cxd6 {[%emt
00:00:09] [%clk 00:02:02]} cxd6 {[%emt 00:00:04] [%clk 00:02:17]} 15. Rac1
{[%emt 00:00:05] [%clk 00:01:58]} Bd7 {[%emt 00:00:08] [%clk 00:02:12]} 16. Bg5
{[%emt 00:00:38] [%clk 00:01:21]} Qb6 {[%emt 00:00:03] [%clk 00:02:12]} 17. Nd2
{[%emt 00:00:04] [%clk 00:01:19]} Rac8 {[%emt 00:00:14] [%clk 00:02:00]} 18. h3
{[%emt 00:00:14] [%clk 00:01:07]} Nf6 {[%emt 00:00:19] [%clk 00:01:43]} 19. Be3
{[%emt 00:00:06] [%clk 00:01:02]} Qd8 {[%emt 00:00:10] [%clk 00:01:36]} 20. Bxa7
{[%emt 00:00:12] [%clk 00:00:52]} Ra8 {[%emt 00:00:07] [%clk 00:01:31]} 21. Qe3
{[%emt 00:00:16] [%clk 00:00:38]} b5 {[%emt 00:00:02] [%clk 00:01:31]} 22. Nb3
{[%emt 00:00:18] [%clk 00:00:21]} f4 {[%emt 00:00:14] [%clk 00:01:19]} 23. Qb6
{[%emt 00:00:03] [%clk 00:00:21]} Qxb6 {[%emt 00:00:06] [%clk 00:01:15]} 24.
Bxb6 {[%emt 00:00:02] [%clk 00:00:21]} Rxa3 {[%emt 00:00:01] [%clk 00:01:16]}
25. Na5 {[%emt 00:00:07] [%clk 00:00:17]} f3 {[%emt 00:00:08] [%clk 00:01:09]}
26. gxf3 {[%emt 00:00:06] [%clk 00:00:13]} Bh6 {[%emt 00:00:15] [%clk 00:00:56]}
27. Be3 {[%emt 00:00:01] [%clk 00:00:14]} Bxe3 {[%emt 00:00:11] [%clk 00:00:47]}
28. fxe3 {[%emt 00:00:01] [%clk 00:00:15]} Bxh3 {[%emt 00:00:06] [%clk
00:00:43]} 29. Rf2 {[%emt 00:00:02] [%clk 00:00:16]} Bd7 {[%emt 00:00:03] [%clk
00:00:41]} 30. Ra2 {[%emt 00:00:04] [%clk 00:00:14]} Rxa2 {[%emt 00:00:05] [%clk
00:00:38]} 31. Nxa2 {[%clk 00:00:15]} g5 {[%emt 00:00:04] [%clk 00:00:36]} 32.
Rc7 {[%emt 00:00:04] [%clk 00:00:13]} g4 {[%emt 00:00:03] [%clk 00:00:35]} 33.
Nc3 {[%emt 00:00:02] [%clk 00:00:13]} gxf3 {[%emt 00:00:04] [%clk 00:00:34]} 34.
Kf2 {[%clk 00:00:14]} Rf8 {[%emt 00:00:10] [%clk 00:00:25]} 35. Nc6 {[%emt
00:00:06] [%clk 00:00:11]} Ng4+ {[%emt 00:00:02] [%clk 00:00:25]} 36. Kg3 {[%emt
00:00:03] [%clk 00:00:10]} f2 {[%emt 00:00:03] [%clk 00:00:24]} 0-1

[Site "Europe Echecs"]

[Event "Championnat d'Europe de Blitz"]
[Date "2024.12.09"]
[White "Tsolakidou, Stavroula"]
[Black "Kalezic, Blazo"]
[WhiteElo "2451"]
[BlackElo "2382"]
[Round "13.29"]
[Result "0-1"]
[TimeControl "180+2"]

1. e4 {[%emt 00:00:04] [%clk 00:03:01]} e6 {[%clk 00:03:03]} 2. d4 {[%emt
00:00:02] [%clk 00:03:02]} d5 {[%emt 00:00:01] [%clk 00:03:03]} 3. e5 {[%emt
00:00:01] [%clk 00:03:02]} c5 {[%emt 00:00:01] [%clk 00:03:04]} 4. c3 {[%emt
00:00:02] [%clk 00:03:02]} Nc6 {[%emt 00:00:01] [%clk 00:03:05]} 5. Nf3 {[%emt
00:00:01] [%clk 00:03:02]} Nge7 {[%emt 00:00:02] [%clk 00:03:05]} 6. Na3 {[%emt
00:00:10] [%clk 00:02:55]} Nf5 {[%emt 00:00:03] [%clk 00:03:04]} 7. Nc2 {[%emt
00:00:02] [%clk 00:02:55]} cxd4 {[%emt 00:00:07] [%clk 00:02:59]} 8. cxd4 {[%emt
00:00:02] [%clk 00:02:55]} Be7 {[%emt 00:00:05] [%clk 00:02:56]} 9. Bd3 {[%emt
00:00:04] [%clk 00:02:53]} h5 {[%emt 00:00:09] [%clk 00:02:50]} 10. O-O {[%emt
00:00:10] [%clk 00:02:45]} g5 {[%emt 00:00:02] [%clk 00:02:49]} 11. Bxf5 {[%emt
00:00:20] [%clk 00:02:27]} exf5 {[%emt 00:00:02] [%clk 00:02:50]} 12. h4 {[%emt
00:00:14] [%clk 00:02:15]} gxh4 {[%emt 00:00:06] [%clk 00:02:46]} 13. Bf4 {[%emt
00:00:09] [%clk 00:02:08]} Be6 {[%emt 00:00:02] [%clk 00:02:46]} 14. b4 {[%emt
00:00:04] [%clk 00:02:06]} Rg8 {[%emt 00:00:09] [%clk 00:02:38]} 15. Kh2 {[%emt
00:00:03] [%clk 00:02:05]} Rg4 {[%emt 00:00:04] [%clk 00:02:36]} 16. Qd2 {[%emt
00:00:05] [%clk 00:02:02]} Qb6 {[%emt 00:00:06] [%clk 00:02:32]} 17. Rab1 {[%emt
00:00:05] [%clk 00:01:59]} Kd7 {[%emt 00:00:05] [%clk 00:02:29]} 18. a4 {[%emt
00:00:04] [%clk 00:01:58]} Rag8 {[%emt 00:00:05] [%clk 00:02:25]} 19. Rg1 {[%emt
00:00:02] [%clk 00:01:58]} R8g6 {[%emt 00:00:18] [%clk 00:02:09]} 20. Nfe1
{[%emt 00:00:35] [%clk 00:01:25]} Qd8 {[%emt 00:00:23] [%clk 00:01:48]} 21. Nd3
{[%emt 00:00:07] [%clk 00:01:21]} b6 {[%emt 00:00:11] [%clk 00:01:39]} 22. f3
{[%emt 00:00:12] [%clk 00:01:10]} Rg3 {[%emt 00:00:07] [%clk 00:01:34]} 23. a5
{[%emt 00:00:10] [%clk 00:01:03]} Qg8 {[%emt 00:00:10] [%clk 00:01:25]} 24. axb6
{[%emt 00:00:07] [%clk 00:00:59]} axb6 {[%emt 00:00:01] [%clk 00:01:26]} 25. Ra1
{[%emt 00:00:05] [%clk 00:00:56]} Bg5 {[%emt 00:00:04] [%clk 00:01:24]} 26. Bxg5
{[%emt 00:00:06] [%clk 00:00:52]} R6xg5 {[%emt 00:00:01] [%clk 00:01:25]} 27.
Nf4 {[%emt 00:00:02] [%clk 00:00:52]} h3 {[%emt 00:00:55] [%clk 00:00:32]} 28.
Nxh3 {[%emt 00:00:06] [%clk 00:00:48]} Rg7 {[%emt 00:00:03] [%clk 00:00:30]} 29.
Nf4 {[%emt 00:00:08] [%clk 00:00:43]} h4 {[%emt 00:00:02] [%clk 00:00:31]} 30.
Ne3 {[%emt 00:00:01] [%clk 00:00:44]} h3 {[%emt 00:00:09] [%clk 00:00:24]} 31.
Nh5 {[%emt 00:00:23] [%clk 00:00:23]} R7g6 {[%emt 00:00:11] [%clk 00:00:15]} 32.
Nxg3 {[%emt 00:00:11] [%clk 00:00:14]} Rxg3 {[%emt 00:00:01] [%clk 00:00:16]}
33. gxh3 {[%emt 00:00:07] [%clk 00:00:09]} f4 {[%emt 00:00:04] [%clk 00:00:14]}
34. Ng4 {[%clk 00:00:10]} Qg5 {[%emt 00:00:01] [%clk 00:00:14]} 35. Qf2 {[%emt
00:00:04] [%clk 00:00:08]} Bxg4 {[%emt 00:00:03] [%clk 00:00:13]} 36. fxg4
{[%emt 00:00:02] [%clk 00:00:09]} Rd3 {[%emt 00:00:03] [%clk 00:00:11]} 37. Rad1
{[%emt 00:00:07]} Rb3 {[%clk 00:00:10]} 38. Rdf1 {[%emt 00:00:01] [%clk
00:00:07]} f3 {[%clk 00:00:11]} 39. Qg3 {[%emt 00:00:04] [%clk 00:00:06]} Nxd4
{[%emt 00:00:02] [%clk 00:00:11]} 40. e6+ {[%emt 00:00:04] [%clk 00:00:04]} fxe6
{[%emt 00:00:01] [%clk 00:00:11]} 41. Rc1 {[%clk 00:00:05]} e5 {[%emt 00:00:01]
[%clk 00:00:12]} 42. h4 {[%emt 00:00:02] [%clk 00:00:05]} Qe3 {[%emt 00:00:05]
[%clk 00:00:08]} 43. Rce1 {[%emt 00:00:03] [%clk 00:00:04]} Ne2 {[%emt 00:00:01]
[%clk 00:00:09]} 44. Rxe2 {[%emt 00:00:03] [%clk 00:00:04]} Qxe2+ {[%clk
00:00:10]} 45. Kh1 {[%clk 00:00:04]} f2 {[%emt 00:00:02] [%clk 00:00:11]} 46.
Qxb3 {[%emt 00:00:03] [%clk 00:00:03]} fxg1=Q+ {[%emt 00:00:04] [%clk 00:00:09]}
47. Kxg1 {[%emt 00:00:01] [%clk 00:00:04]} Qxg4+ {[%clk 00:00:10]} 48. Kf1
{[%emt 00:00:02] [%clk 00:00:04]} Ke6 {[%emt 00:00:04] [%clk 00:00:09]} 49. Qe3
{[%emt 00:00:02] [%clk 00:00:03]} Qf4+ {[%emt 00:00:03] [%clk 00:00:08]} 50.
Qxf4 {[%clk 00:00:05]} exf4 {[%clk 00:00:09]} 51. Kf2 {[%emt 00:00:01] [%clk
00:00:06]} Kf5 {[%clk 00:00:10]} 52. Kf3 {[%emt 00:00:01] [%clk 00:00:07]} d4
{[%clk 00:00:11]} 53. h5 {[%clk 00:00:08]} d3 {[%emt 00:00:01] [%clk 00:00:13]}
54. h6 {[%clk 00:00:09]} Kg6 {[%clk 00:00:14]} 0-1

[Site "Europe Echecs"]

[Event "Championnat d'Europe de Blitz"]
[Date "2024.12.09"]
[White "Gavrilescu, David"]
[Black "Diermair, Andreas"]
[WhiteElo "2549"]
[BlackElo "2433"]
[Round "13.30"]
[Result "1-0"]
[TimeControl "180+2"]

1. e4 {[%emt 00:00:05] [%clk 00:02:58]} e6 {[%emt 00:00:03] [%clk 00:03:02]} 2.
d4 {[%clk 00:02:59]} d5 {[%clk 00:03:03]} 3. Nd2 {[%emt 00:00:01] [%clk
00:03:00]} Nc6 {[%emt 00:00:02] [%clk 00:03:03]} 4. Ngf3 {[%emt 00:00:02] [%clk
00:02:59]} Nf6 {[%clk 00:03:05]} 5. e5 {[%emt 00:00:02] [%clk 00:03:00]} Nd7
{[%emt 00:00:01] [%clk 00:03:06]} 6. Nb3 {[%emt 00:00:04] [%clk 00:02:58]} a5
{[%emt 00:00:03]} 7. a4 {[%clk 00:02:59]} b6 {[%emt 00:00:03] [%clk 00:03:04]}
8. Bb5 {[%emt 00:00:02] [%clk 00:02:58]} Bb7 {[%emt 00:00:02] [%clk 00:03:04]}
9. O-O {[%emt 00:00:04] [%clk 00:02:57]} f6 {[%emt 00:00:02] [%clk 00:03:03]}
10. Re1 {[%emt 00:00:06] [%clk 00:02:53]} f5 {[%emt 00:00:44] [%clk 00:02:22]}
11. Ng5 {[%emt 00:00:56] [%clk 00:01:59]} Qe7 {[%emt 00:00:04] [%clk 00:02:20]}
12. Nh3 {[%emt 00:00:13] [%clk 00:01:49]} Qf7 {[%emt 00:00:13] [%clk 00:02:09]}
13. Qf3 {[%emt 00:00:14] [%clk 00:01:37]} Nb4 {[%emt 00:00:17] [%clk 00:01:54]}
14. Qd1 {[%emt 00:00:20] [%clk 00:01:18]} c6 {[%emt 00:00:30] [%clk 00:01:26]}
15. Be2 {[%emt 00:00:02] [%clk 00:01:18]} c5 {[%emt 00:00:04] [%clk 00:01:24]}
16. c3 {[%emt 00:00:08] [%clk 00:01:13]} Nc6 {[%emt 00:00:02] [%clk 00:01:24]}
17. Bf3 {[%emt 00:00:07] [%clk 00:01:08]} cxd4 {[%emt 00:00:29] [%clk 00:00:57]}
18. Bxd5 {[%emt 00:00:20] [%clk 00:00:50]} Ndxe5 {[%emt 00:00:36] [%clk
00:00:23]} 19. Ng5 {[%emt 00:00:02] [%clk 00:00:50]} Qf6 {[%emt 00:00:17] [%clk
00:00:08]} 20. Nxe6 {[%emt 00:00:15] [%clk 00:00:37]} 1-0

[Site "Europe Echecs"]

[Event "Championnat d'Europe de Blitz"]
[Date "2024.12.09"]
[White "Ochedzan, Tymon"]
[Black "Samunenkov, Ihor"]
[WhiteElo "2247"]
[BlackElo "2543"]
[Round "13.31"]
[Result "0-1"]
[TimeControl "180+2"]

1. e4 {[%emt 00:02:38] [%clk 00:03:02]} e5 {[%emt 00:00:02] [%clk 00:03:02]} 2.
Nf3 {[%emt 00:00:02] [%clk 00:03:05]} Nf6 {[%clk 00:03:03]} 3. Nxe5 {[%emt
00:00:01] [%clk 00:03:05]} d6 {[%emt 00:00:01] [%clk 00:03:03]} 4. Nf3 {[%emt
00:00:02] [%clk 00:03:06]} Nxe4 {[%emt 00:00:02] [%clk 00:03:03]} 5. Nc3 {[%emt
00:00:02] [%clk 00:03:06]} Nxc3 {[%emt 00:00:02] [%clk 00:03:03]} 6. dxc3 {[%emt
00:00:01] [%clk 00:03:07]} Be7 {[%emt 00:00:02] [%clk 00:03:03]} 7. Bd3 {[%emt
00:00:12] [%clk 00:02:56]} O-O {[%emt 00:00:03] [%clk 00:03:03]} 8. Bf4 {[%emt
00:00:05] [%clk 00:02:53]} Nd7 {[%emt 00:00:03] [%clk 00:03:02]} 9. Qd2 {[%emt
00:00:03] [%clk 00:02:52]} Nc5 {[%emt 00:00:02] [%clk 00:03:01]} 10. O-O-O
{[%emt 00:00:04] [%clk 00:02:50]} Nxd3+ {[%emt 00:00:17] [%clk 00:02:47]} 11.
cxd3 {[%emt 00:00:03] [%clk 00:02:48]} Be6 {[%emt 00:00:07] [%clk 00:02:43]} 12.
Kb1 {[%emt 00:00:07] [%clk 00:02:44]} c5 {[%emt 00:00:11] [%clk 00:02:34]} 13.
Rhe1 {[%emt 00:00:05] [%clk 00:02:41]} b5 {[%emt 00:00:05] [%clk 00:02:32]} 14.
d4 {[%emt 00:00:04] [%clk 00:02:38]} Bf5+ {[%emt 00:00:10] [%clk 00:02:23]} 15.
Ka1 {[%clk 00:02:40]} c4 {[%emt 00:00:01] [%clk 00:02:24]} 16. d5 {[%emt
00:00:07] [%clk 00:02:35]} Bf6 {[%emt 00:00:34] [%clk 00:01:52]} 17. Nd4 {[%emt
00:00:09] [%clk 00:02:28]} Bxd4 {[%emt 00:00:05] [%clk 00:01:49]} 18. Qxd4
{[%emt 00:00:01] [%clk 00:02:29]} Qd7 {[%emt 00:00:05] [%clk 00:01:46]} 19. Re3
{[%emt 00:00:08] [%clk 00:02:23]} Rfe8 {[%emt 00:00:12] [%clk 00:01:37]} 20.
Rde1 {[%emt 00:00:11] [%clk 00:02:14]} h6 {[%emt 00:00:19] [%clk 00:01:19]} 21.
h4 {[%emt 00:00:06] [%clk 00:02:11]} Rxe3 {[%emt 00:00:15] [%clk 00:01:06]} 22.
Qxe3 {[%emt 00:00:02] [%clk 00:02:11]} Qb7 {[%emt 00:00:07] [%clk 00:01:01]} 23.
g4 {[%emt 00:00:20] [%clk 00:01:53]} Bxg4 {[%emt 00:00:22] [%clk 00:00:41]} 24.
Rg1 {[%emt 00:00:04] [%clk 00:01:51]} h5 {[%emt 00:00:02] [%clk 00:00:41]} 25.
f3 {[%emt 00:00:04] [%clk 00:01:49]} Bf5 {[%emt 00:00:03] [%clk 00:00:41]} 26.
Qd4 {[%emt 00:00:28] [%clk 00:01:23]} Bg6 {[%emt 00:00:01] [%clk 00:00:41]} 27.
Bd2 {[%emt 00:00:25] [%clk 00:00:59]} Re8 {[%emt 00:00:05] [%clk 00:00:38]} 28.
Bf4 {[%emt 00:00:23] [%clk 00:00:39]} Qe7 {[%emt 00:00:06] [%clk 00:00:35]} 29.
Bg3 {[%emt 00:00:05] [%clk 00:00:36]} Qe3 {[%emt 00:00:20] [%clk 00:00:16]} 30.
Qxe3 {[%emt 00:00:03] [%clk 00:00:34]} Rxe3 {[%emt 00:00:02] [%clk 00:00:16]}
31. Bxd6 {[%clk 00:00:35]} Rd3 {[%emt 00:00:02] [%clk 00:00:16]} 32. Bc5 {[%emt
00:00:03] [%clk 00:00:34]} Rxd5 {[%emt 00:00:02] [%clk 00:00:17]} 33. Bxa7
{[%emt 00:00:01] [%clk 00:00:34]} Rd3 {[%emt 00:00:01] [%clk 00:00:17]} 34. Rf1
{[%emt 00:00:04] [%clk 00:00:32]} Bf5 {[%emt 00:00:05] [%clk 00:00:14]} 35. Bd4
{[%emt 00:00:02] [%clk 00:00:32]} f6 {[%emt 00:00:03] [%clk 00:00:13]} 36. b3
{[%emt 00:00:04] [%clk 00:00:31]} b4 {[%emt 00:00:05] [%clk 00:00:10]} 37. Rc1
{[%emt 00:00:21] [%clk 00:00:12]} cxb3 {[%emt 00:00:04] [%clk 00:00:08]} 38.
axb3 {[%emt 00:00:02] [%clk 00:00:12]} Rxf3 {[%emt 00:00:04] [%clk 00:00:06]}
39. Kb2 {[%emt 00:00:05] [%clk 00:00:09]} Rf4 {[%clk 00:00:07]} 40. Rh1 {[%emt
00:00:03] [%clk 00:00:08]} Kf7 {[%emt 00:00:03] [%clk 00:00:06]} 41. Be3 {[%emt
00:00:02] [%clk 00:00:08]} Rf3 {[%emt 00:00:02] [%clk 00:00:07]} 42. Bd4 {[%clk
00:00:09]} Rd3 {[%emt 00:00:01] [%clk 00:00:07]} 43. Rf1 {[%emt 00:00:04] [%clk
00:00:07]} Rd2+ {[%emt 00:00:02] [%clk 00:00:07]} 44. Kc1 {[%emt 00:00:02] [%clk
00:00:07]} Rc2+ {[%emt 00:00:01] [%clk 00:00:08]} 45. Kd1 {[%clk 00:00:09]} bxc3
{[%emt 00:00:06] [%clk 00:00:05]} 46. Rxf5 {[%clk 00:00:09]} Rd2+ {[%clk
00:00:06]} 47. Kc1 {[%clk 00:00:11]} Rxd4 {[%emt 00:00:02] [%clk 00:00:06]} 48.
Rxh5 {[%clk 00:00:12]} Rd2 {[%emt 00:00:05] [%clk 00:00:03]} 49. Rc5 {[%clk
00:00:13]} Rh2 {[%emt 00:00:01] [%clk 00:00:04]} 50. h5 {[%emt 00:00:02] [%clk
00:00:13]} Ke6 {[%emt 00:00:03] [%clk 00:00:04]} 51. b4 {[%clk 00:00:14]} Kd6
{[%emt 00:00:01] [%clk 00:00:05]} 52. Rxc3 {[%emt 00:00:08] [%clk 00:00:08]}
Rxh5 {[%emt 00:00:02] [%clk 00:00:05]} 53. Rb3 {[%clk 00:00:10]} Kc6 {[%emt
00:00:02] [%clk 00:00:05]} 54. Kd2 {[%clk 00:00:11]} Re5 {[%emt 00:00:03] [%clk
00:00:05]} 55. Rc3+ {[%emt 00:00:06] [%clk 00:00:06]} Kb5 {[%emt 00:00:01] [%clk
00:00:06]} 56. Rc7 {[%clk 00:00:07]} g5 {[%emt 00:00:02] [%clk 00:00:05]} 57.
Rb7+ {[%emt 00:00:02] [%clk 00:00:08]} Kc4 {[%emt 00:00:01] [%clk 00:00:06]} 58.
Rf7 {[%emt 00:00:02] [%clk 00:00:07]} f5 {[%emt 00:00:01] [%clk 00:00:07]} 59.
Rb7 {[%emt 00:00:02] [%clk 00:00:07]} g4 {[%emt 00:00:02] [%clk 00:00:07]} 0-1

[Site "Europe Echecs"]